fUST/lending_fUST_20250506
["ID","MTS","AMOUNT","RATE_DAILY","PERIOD"]
[360086939,1746545441844,-400.0,0.00019178,2]
[360086941,1746545441853,-400.0,0.00019178,2]
[360086943,1746545441863,-3362.15,0.00019178,2]
[360086945,1746545441873,-400.0,0.00019178,2]
[360086947,1746545441882,-400.0,0.00019178,2]
[360086949,1746545441892,-400.0,0.00019178,2]
[360086951,1746545441901,-400.0,0.00019178,2]
[360086953,1746545441911,-507.22532263,0.00019178,2]
[360086955,1746545441920,-400.0,0.00019178,2]
[360086957,1746545441929,-400.0,0.00019178,2]
[360086959,1746545441938,-400.0,0.00019178,2]
[360086961,1746545441948,-400.0,0.00019178,2]
[360086963,1746545441959,-400.0,0.00019178,2]
[360086965,1746545441972,-722.94,0.00019178,2]
[360086967,1746545441981,-996.78,0.00019178,2]
[360086969,1746545441990,-400.0,0.00019178,2]
[360086971,1746545441999,-400.0,0.00019178,2]
[360086973,1746545442010,-400.0,0.00019178,2]
[360086975,1746545442019,-233.76033808,0.00019178,2]
[360086977,1746545442029,-208.10094571,0.00019178,2]
[360086979,1746545442039,-400.0,0.00019178,2]
[360086981,1746545442049,-400.0,0.00019178,2]
[360086983,1746545442060,-163.4935406,0.00019178,2]
[360086985,1746545442069,-205.50026287,0.00019178,2]
[360086987,1746545442079,-936.41,0.00019178,2]
[360086989,1746545442088,-1291.38,0.00019178,2]
[360086991,1746545442098,-400.0,0.00019178,2]
[360086993,1746545442108,-400.0,0.00019178,2]
[360086995,1746545442117,-400.0,0.00019178,2]
[360086997,1746545442126,-400.0,0.00019178,2]
[360086999,1746545442136,-400.0,0.00019178,2]
[360087001,1746545442145,-400.0,0.00019178,2]
[360087003,1746545442154,-506.19767012,0.00019178,2]
[360087005,1746545442164,-400.0,0.00019178,2]
[360087007,1746545442173,-400.0,0.00019178,2]
[360087009,1746545442182,-405.2688485,0.00019178,2]
[360087011,1746545442192,-401.61499065,0.00019178,2]
[360087013,1746545442202,-1287.28,0.00019178,2]
[360087015,1746545442211,-400.0,0.00019178,2]
[360087017,1746545442221,-400.0,0.00019178,2]
[360087019,1746545442230,-871.33,0.00019178,2]
[360087021,1746545442239,-403.16813055,0.00019178,2]
[360087023,1746545442248,-790.06,0.00019178,2]
[360087025,1746545442258,-400.0,0.00019178,2]
[360087026,1746545442267,-400.0,0.00019178,2]
[360087029,1746545442277,-307.13727903,0.00019178,2]
[360087031,1746545442286,-400.0,0.00019178,2]
[360087033,1746545442295,-404.26,0.00019178,2]
[360087034,1746545442305,-400.0,0.00019178,2]
[360087036,1746545442315,-400.0,0.00019178,2]
[360087038,1746545442325,-1582.65,0.00019178,2]
[360087041,1746545442335,-400.0,0.00019178,2]
[360087042,1746545442344,-400.0,0.00019178,2]
[360087044,1746545442354,-400.0,0.00019178,2]
[360087046,1746545442363,-5728.17,0.00019178,2]
[360087049,1746545442373,-400.0,0.00019178,2]
[360087051,1746545442383,-400.0,0.00019178,2]
[360087053,1746545442392,-404.73978031,0.00019178,2]
[360087055,1746545442402,-400.0,0.00019178,2]
[360087057,1746545442412,-400.0,0.00019178,2]
[360087059,1746545442422,-503.5525166,0.00019178,2]
[360087061,1746545442431,-400.0,0.00019178,2]
[360087063,1746545442440,-403.35361379,0.00019178,2]
[360087065,1746545442449,-400.0,0.00019178,2]
[360087067,1746545442459,-400.0,0.00019178,2]
[360087069,1746545442468,-864.92,0.00019178,2]
[360087071,1746545442477,-400.0,0.00019178,2]
[360087073,1746545442487,-400.0,0.00019178,2]
[360087075,1746545442496,-400.0,0.00019178,2]
[360087077,1746545442505,-400.0,0.00019178,2]
[360087079,1746545442515,-511.39966207,0.00019178,2]
[360087081,1746545442524,-400.0,0.00019178,2]
[360087095,1746545442532,-400.0,0.00019178,2]
[360087098,1746545442670,-1287.6,0.00019178,2]
[360087100,1746545442680,-400.0,0.00019178,2]
[360087102,1746545442691,-400.0,0.00019178,2]
[360087104,1746545442700,-400.0,0.00019178,2]
[360087106,1746545442709,-400.0,0.00019178,2]
[360087108,1746545442719,-400.0,0.00019178,2]
[360087110,1746545442729,-476.14,0.00019178,2]
[360087112,1746545442739,-513.04252661,0.00019178,2]
[360087114,1746545442748,-1571.95,0.00019178,2]
[360087116,1746545442758,-400.0,0.00019178,2]
[360087118,1746545442768,-401.83508776,0.00019178,2]
[360087120,1746545442777,-400.0,0.00019178,2]
[360087122,1746545442787,-504.41927017,0.00019178,2]
[360087124,1746545442795,-400.0,0.00019178,2]
[360087126,1746545442806,-401.30563412,0.00019178,2]
[360087128,1746545442815,-400.0,0.00019178,2]
[360087130,1746545442825,-492.72,0.00019178,2]
[360087132,1746545442834,-400.0,0.00019178,2]
[360087134,1746545442843,-400.0,0.00019178,2]
[360087136,1746545442852,-400.0,0.00019178,2]
[360087138,1746545442862,-400.0,0.00019178,2]
[360087140,1746545442872,-454.11968997,0.00019178,2]
[360087142,1746545442881,-400.0,0.00019178,2]
[360087144,1746545442891,-400.0,0.00019178,2]
[360087146,1746545442900,-400.0,0.00019178,2]
[360087148,1746545442909,-505.15,0.00019178,2]
[360087150,1746545442919,-400.0,0.00019178,2]
[360087152,1746545442928,-500.0,0.00019178,2]
[360087154,1746545442938,-480.12203808,0.00019178,2]
[360087156,1746545442948,-1451.93,0.00019178,2]
[360087158,1746545442959,-400.0,0.00019178,2]
[360087160,1746545442969,-400.0,0.00019178,2]
[360087162,1746545442979,-762.0,0.00019178,2]
[360087164,1746545442988,-231.68795328,0.00019178,2]
[360087166,1746545442999,-330.15802287,0.00019178,2]
[360087168,1746545443008,-400.0,0.00019178,2]
[360087170,1746545443017,-400.0,0.00019178,2]
[360087172,1746545443027,-400.0,0.00019178,2]
[360087175,1746545443036,-686.7,0.00019178,2]
[360087178,1746545443047,-990.58,0.00019178,2]
[360087180,1746545443056,-401.96523987,0.00019178,2]
[360087182,1746545443066,-517.64,0.00019178,2]
[360087184,1746545443075,-436.53221498,0.00019178,2]
[360087186,1746545443084,-400.0,0.00019178,2]
[360087188,1746545443094,-347.86857434,0.00019178,2]
[360087190,1746545443102,-1169.63,0.00019178,2]
[360087192,1746545443112,-400.0,0.00019178,2]
[360087194,1746545443121,-502.88033462,0.00019178,2]
[360087196,1746545443131,-400.0,0.00019178,2]
[360087198,1746545443140,-400.0,0.00019178,2]
[360087201,1746545443150,-400.0,0.00019178,2]
[360087203,1746545443159,-500.0,0.00019178,2]
[360087205,1746545443167,-400.0,0.00019178,2]
[360087207,1746545443176,-400.0,0.00019178,2]
[360087209,1746545443186,-692.67,0.00019178,2]
[360087212,1746545443195,-407.33338974,0.00019178,2]
[360087214,1746545443205,-400.0,0.00019178,2]
[360087217,1746545443214,-500.0,0.00019178,2]
[360087220,1746545443223,-500.0,0.00019178,2]
[360087223,1746545443232,-500.0,0.00019178,2]
[360087225,1746545443241,-500.0,0.00019178,2]
[360087227,1746545443251,-400.0,0.00019178,2]
[360087229,1746545443259,-500.0,0.00019178,2]
[360087231,1746545443269,-400.0,0.00019178,2]
[360087233,1746545443278,-500.0,0.00019178,2]
[360087235,1746545443289,-500.0,0.00019178,2]
[360087237,1746545443298,-500.0,0.00019178,2]
[360087239,1746545443311,-500.0,0.00019178,2]
[360087241,1746545443320,-425.58788198,0.00019178,2]
[360087243,1746545443332,-500.0,0.00019178,2]
[360087245,1746545443341,-500.0,0.00019178,2]
[360087247,1746545443350,-500.0,0.00019178,2]
[360087249,1746545443360,-500.0,0.00019178,2]
[360087250,1746545443369,-500.0,0.00019178,2]
[360087251,1746545443378,-500.0,0.00019178,2]
[360087252,1746545443387,-500.0,0.00019178,2]
[360087253,1746545443397,-400.0,0.00019178,2]
[360087254,1746545443406,-500.0,0.00019178,2]
[360087255,1746545443415,-500.0,0.00019178,2]
[360087256,1746545443425,-500.0,0.00019178,2]
[360087257,1746545443434,-500.0,0.00019178,2]
[360087258,1746545443443,-400.0,0.00019178,2]
[360087259,1746545443452,-386.04484471,0.00019178,2]
[360087260,1746545443461,-400.0,0.00019178,2]
[360087261,1746545443470,-999.35,0.00019178,2]
[360087262,1746545443479,-400.0,0.00019178,2]
[360087263,1746545443488,-400.0,0.00019178,2]
[360087264,1746545443497,-400.0,0.00019178,2]
[360087265,1746545443506,-400.0,0.00019178,2]
[360087266,1746545443515,-500.0,0.00019178,2]
[360087268,1746545443525,-400.0,0.00019178,2]
[360087269,1746545443534,-400.0,0.00019178,2]
[360087270,1746545443543,-400.0,0.00019178,2]
[360087271,1746545443556,-500.0,0.00019178,2]
[360087272,1746545443566,-500.0,0.00019178,2]
[360087273,1746545443576,-314.86694994,0.00019178,2]
[360087274,1746545443585,-400.0,0.00019178,2]
[360087275,1746545443595,-404.47004153,0.00019178,2]
[360087276,1746545443604,-400.0,0.00019178,2]
[360087277,1746545443614,-1893.48,0.00019178,2]
[360087278,1746545443623,-400.0,0.00019178,2]
[360087279,1746545443633,-400.0,0.00019178,2]
[360087280,1746545443643,-400.0,0.00019178,2]
[360087281,1746545443652,-400.0,0.00019178,2]
[360087282,1746545443661,-418.59343452,0.00019178,2]
[360087283,1746545443670,-400.0,0.00019178,2]
[360087284,1746545443680,-4213.84,0.00019178,2]
[360087285,1746545443689,-532.82628806,0.00019178,2]
[360087287,1746545443698,-531.79,0.00019178,2]
[360087288,1746545443707,-400.0,0.00019178,2]
[360087290,1746545443718,-400.0,0.00019178,2]
[360087292,1746545443728,-530.06790024,0.00019178,2]
[360087294,1746545443738,-500.0,0.00019178,2]
[360087295,1746545443748,-500.0,0.00019178,2]
[360087297,1746545443758,-500.0,0.00019178,2]
[360087299,1746545443767,-500.0,0.00019178,2]
[360087300,1746545443777,-500.0,0.00019178,2]
[360087301,1746545443786,-500.0,0.00019178,2]
[360087302,1746545443795,-500.0,0.00019178,2]
[360087303,1746545443807,-400.0,0.00019178,2]
[360087304,1746545443816,-500.0,0.00019178,2]
[360087305,1746545443826,-500.0,0.00019178,2]
[360087306,1746545443835,-500.0,0.00019178,2]
[360087307,1746545443845,-179.19424047,0.00019178,2]
[360087308,1746545443854,-960.32,0.00019178,2]
[360087310,1746545443863,-400.0,0.00019178,2]
[360087312,1746545443873,-587.8,0.00019178,2]
[360087313,1746545443883,-400.0,0.00019178,2]
[360087314,1746545443892,-400.0,0.00019178,2]
[360087315,1746545443902,-400.0,0.00019178,2]
[360087317,1746545443912,-407.5,0.00019178,2]
[360087320,1746545443922,-1117.42,0.00019178,2]
[360087321,1746545443931,-400.0,0.00019178,2]
[360087322,1746545443940,-400.0,0.00019178,2]
[360087323,1746545443949,-520.49,0.00019178,2]
[360087324,1746545443960,-400.0,0.00019178,2]
[360087325,1746545443972,-1182.36,0.00019178,2]
[360087326,1746545443982,-463.55,0.00019178,2]
[360087327,1746545443992,-400.0,0.00019178,2]
[360087328,1746545444002,-406.27990152,0.00019178,2]
[360087329,1746545444011,-404.56256714,0.00019178,2]
[360087330,1746545444021,-400.0,0.00019178,2]
[360087331,1746545444032,-400.0,0.00019178,2]
[360087332,1746545444042,-2380.02,0.00019178,2]
[360087333,1746545444054,-1986.4,0.00019178,2]
[360087334,1746545444063,-400.0,0.00019178,2]
[360087335,1746545444073,-400.0,0.00019178,2]
[360087336,1746545444083,-277.83555201,0.00019178,2]
[360087338,1746545444092,-400.0,0.00019178,2]
[360087340,1746545444101,-319.65673398,0.00019178,2]
[360087342,1746545444110,-400.0,0.00019178,2]
[360087343,1746545444120,-400.0,0.00019178,2]
[360087345,1746545444129,-400.0,0.00019178,2]
[360087347,1746545444139,-400.0,0.00019178,2]
[360087349,1746545444149,-739.61,0.00019178,2]
[360087351,1746545444158,-460.96,0.00019178,2]
[360087353,1746545444167,-2291.43,0.00019178,2]
[360087355,1746545444176,-404.8,0.00019178,2]
[360087357,1746545444185,-502.25070254,0.00019178,2]
[360087359,1746545444194,-400.0,0.00019178,2]
[360087361,1746545444204,-400.0,0.00019178,2]
[360087363,1746545444213,-400.0,0.00019178,2]
[360087364,1746545444222,-401.0693151,0.00019178,2]
[360087367,1746545444231,-400.0,0.00019178,2]
[360087369,1746545444242,-714.48,0.00019178,2]
[360087370,1746545444253,-400.0,0.00019178,2]
[360087372,1746545444263,-400.0,0.00019178,2]
[360087374,1746545444272,-400.0,0.00019178,2]
[360087376,1746545444280,-400.0,0.00019178,2]
[360087378,1746545444289,-414.38058515,0.00019178,2]
[360087380,1746545444298,-1462.3,0.00019178,2]
[360087382,1746545444309,-400.0,0.00019178,2]
[360087384,1746545444318,-400.0,0.00019178,2]
[360087386,1746545444326,-2020.67,0.00019178,2]
[360087388,1746545444335,-678.24,0.00019178,2]
[360087390,1746545444344,-400.0,0.00019178,2]
[360087392,1746545444354,-400.0,0.00019178,2]
[360087394,1746545444363,-2363.52,0.00019178,2]
[360087396,1746545444372,-777.59,0.00019178,2]
[360087398,1746545444382,-400.0,0.00019178,2]
[360087400,1746545444391,-400.0,0.00019178,2]
[360087402,1746545444400,-401.05920041,0.00019178,2]
[360087404,1746545444409,-1725.95,0.00019178,2]
[360087406,1746545444418,-244.21471632,0.00019178,2]
[360087408,1746545444427,-400.0,0.00019178,2]
[360087410,1746545444436,-1322.84,0.00019178,2]
[360087412,1746545444445,-400.0,0.00019178,2]
[360087414,1746545444454,-605.23,0.00019178,2]
[360087416,1746545444463,-400.0,0.00019178,2]
[360087418,1746545444473,-400.0,0.00019178,2]
[360087420,1746545444483,-400.0,0.00019178,2]
[360087422,1746545444491,-400.0,0.00019178,2]
[360087424,1746545444501,-400.0,0.00019178,2]
[360087426,1746545444510,-400.0,0.00019178,2]
[360087428,1746545444519,-400.0,0.00019178,2]
[360087430,1746545444528,-1682.92,0.00019178,2]
[360087432,1746545444537,-616.96,0.00019178,2]
[360087434,1746545444546,-400.0,0.00019178,2]
[360087436,1746545444557,-1796.39,0.00019178,2]
[360087438,1746545444566,-400.0,0.00019178,2]
[360087440,1746545444575,-7456.66,0.00019178,2]
[360087442,1746545444584,-1000.0,0.00019178,2]
[360087444,1746545444593,-404.18475722,0.00019178,2]
[360087446,1746545444603,-437.97,0.00019178,2]
[360087448,1746545444612,-402.82132138,0.00019178,2]
[360087450,1746545444621,-400.0,0.00019178,2]
[360087452,1746545444630,-400.0,0.00019178,2]
[360087454,1746545444639,-400.0,0.00019178,2]
[360087456,1746545444649,-1421.65,0.00019178,2]
[360087458,1746545444658,-500.0,0.00019178,2]
[360087460,1746545444668,-419.67879142,0.00019178,2]
[360087462,1746545444678,-400.0,0.00019178,2]
[360087464,1746545444687,-358.0,0.00019178,2]
[360087466,1746545444696,-400.0,0.00019178,2]
[360087468,1746545444705,-400.0,0.00019178,2]
[360087470,1746545444715,-400.0,0.00019178,2]
[360087472,1746545444724,-400.0,0.00019178,2]
[360087474,1746545444733,-400.29,0.00019178,2]
[360087476,1746545444742,-400.0,0.00019178,2]
[360087478,1746545444751,-9064.12,0.00019178,2]
[360087480,1746545444760,-400.0,0.00019178,2]
[360087482,1746545444770,-1858.0,0.00019178,2]
[360087484,1746545444779,-1315.2,0.00019178,2]
[360087486,1746545444788,-1315.2,0.00019178,2]
[360087488,1746545444797,-1344.17,0.00019178,2]
[360087490,1746545444809,-1315.2,0.00019178,2]
[360087492,1746545444818,-1315.2,0.00019178,2]
[360087494,1746545444827,-1315.2,0.00019178,2]
[360087496,1746545444836,-400.0,0.00019178,2]
[360087498,1746545444846,-1315.2,0.00019178,2]
[360087500,1746545444856,-1315.2,0.00019178,2]
[360087502,1746545444865,-1315.2,0.00019178,2]
[360087504,1746545444875,-1315.2,0.00019178,2]
[360087506,1746545444884,-1315.2,0.00019178,2]
[360087508,1746545444893,-1315.2,0.00019178,2]
[360087510,1746545444903,-1315.2,0.00019178,2]
[360087512,1746545444912,-1315.2,0.00019178,2]
[360087514,1746545444921,-505.28538744,0.00019178,2]
[360087516,1746545444931,-1315.2,0.00019178,2]
[360087518,1746545444940,-1315.2,0.00019178,2]
[360087520,1746545444950,-400.0,0.00019178,2]
[360087522,1746545444964,-1315.2,0.00019178,2]
[360087524,1746545444975,-1315.2,0.00019178,2]
[360087526,1746545444984,-1315.2,0.00019178,2]
[360087528,1746545444994,-1315.2,0.00019178,2]
[360087530,1746545445003,-1315.2,0.00019178,2]
[360087532,1746545445014,-400.0,0.00019178,2]
[360087534,1746545445024,-1315.2,0.00019178,2]
[360087536,1746545445033,-1315.2,0.00019178,2]
[360087538,1746545445044,-400.0,0.00019178,2]
[360087540,1746545445053,-1315.2,0.00019178,2]
[360087542,1746545445063,-1315.22,0.00019178,2]
[360087544,1746545445072,-400.0,0.00019178,2]
[360087546,1746545445081,-400.0,0.00019178,2]
[360087548,1746545445090,-3771.53,0.00019178,2]
[360087550,1746545445099,-400.0,0.00019178,2]
[360087552,1746545445108,-833.12,0.00019178,2]
[360087554,1746545445118,-400.0,0.00019178,2]
[360087556,1746545445127,-3088.97,0.00019178,2]
[360087558,1746545445136,-400.0,0.00019178,2]
[360087560,1746545445145,-400.0,0.00019178,2]
[360087562,1746545445155,-1302.37,0.00019178,2]
[360087564,1746545445164,-403.89508288,0.00019178,2]
[360087566,1746545445173,-402.76247651,0.00019178,2]
[360087568,1746545445182,-400.0,0.00019178,2]
[360087570,1746545445191,-365.92022932,0.00019178,2]
[360087572,1746545445201,-400.0,0.00019178,2]
[360087574,1746545445210,-3622.27,0.00019178,2]
[360087576,1746545445220,-400.0,0.00019178,2]
[360087578,1746545445229,-422.18,0.00019178,2]
[360087580,1746545445238,-400.0,0.00019178,2]
[360087582,1746545445248,-400.0,0.00019178,2]
[360087584,1746545445258,-400.0,0.00019178,2]
[360087586,1746545445267,-400.0,0.00019178,2]
[360087588,1746545445276,-884.07,0.00019178,2]
[360087590,1746545445285,-400.0,0.00019178,2]
[360087592,1746545445295,-400.0,0.00019178,2]
[360087594,1746545445304,-500.0,0.00019178,2]
[360087596,1746545445315,-500.0,0.00019178,2]
[360087611,1746545445444,-454.63737942,0.00019178,2]
[360087613,1746545445453,-500.0,0.00019178,2]
[360087615,1746545445463,-500.0,0.00019178,2]
[360087617,1746545445472,-500.0,0.00019178,2]
[360087619,1746545445481,-500.0,0.00019178,2]
[360087621,1746545445490,-500.0,0.00019178,2]
[360087623,1746545445499,-500.0,0.00019178,2]
[360087625,1746545445509,-500.0,0.00019178,2]
[360087627,1746545445518,-500.0,0.00019178,2]
[360087629,1746545445527,-500.0,0.00019178,2]
[360087631,1746545445536,-500.0,0.00019178,2]
[360087633,1746545445545,-510.88,0.00019178,2]
[360087635,1746545445554,-400.0,0.00019178,2]
[360087637,1746545445564,-1060.16,0.00019178,2]
[360087639,1746545445573,-305.90250876,0.00019178,2]
[360087641,1746545445582,-510.3831888,0.00019178,2]
[360087643,1746545445592,-500.0,0.00019178,2]
[360087645,1746545445600,-400.0,0.00019178,2]
[360087647,1746545445610,-500.0,0.00019178,2]
[360087649,1746545445619,-400.0,0.00019178,2]
[360087651,1746545445627,-411.64,0.00019178,2]
[360087653,1746545445636,-400.0,0.00019178,2]
[360087655,1746545445645,-400.0,0.00019178,2]
[360087657,1746545445655,-400.0,0.00019178,2]
[360087659,1746545445664,-400.0,0.00019178,2]
[360087661,1746545445673,-400.0,0.00019178,2]
[360087663,1746545445682,-400.0,0.00019178,2]
[360087665,1746545445692,-506.65,0.00019178,2]
[360087667,1746545445702,-400.0,0.00019178,2]
[360087669,1746545445712,-400.0,0.00019178,2]
[360087671,1746545445721,-400.0,0.00019178,2]
[360087673,1746545445731,-400.0,0.00019178,2]
[360087675,1746545445740,-401.69087347,0.00019178,2]
[360087677,1746545445749,-400.0,0.00019178,2]
[360087679,1746545445758,-400.0,0.00019178,2]
[360087681,1746545445768,-400.0,0.00019178,2]
[360087683,1746545445777,-400.0,0.00019178,2]
[360087685,1746545445788,-400.0,0.00019178,2]
[360087687,1746545445798,-611.34,0.00019178,2]
[360087689,1746545445807,-400.0,0.00019178,2]
[360087691,1746545445817,-400.0,0.00019178,2]
[360087693,1746545445826,-531.2,0.00019178,2]
[360087695,1746545445835,-234.1504007,0.00019178,2]
[360087697,1746545445845,-153.2741125,0.00019178,2]
[360087699,1746545445854,-400.0,0.00019178,2]
[360087701,1746545445864,-400.0,0.00019178,2]
[360087703,1746545445873,-400.0,0.00019178,2]
[360087705,1746545445882,-400.0,0.00019178,2]
[360087707,1746545445891,-400.0,0.00019178,2]
[360087709,1746545445901,-400.0,0.00019178,2]
[360087711,1746545445910,-400.42065851,0.00019178,2]
[360087713,1746545445921,-2462.55,0.00019178,2]
[360087715,1746545445930,-400.0,0.00019178,2]
[360087717,1746545445939,-400.0,0.00019178,2]
[360087719,1746545445948,-402.56655068,0.00019178,2]
[360087721,1746545445959,-8115.91,0.00019178,2]
[360087723,1746545445972,-580.85,0.00019178,2]
[360087725,1746545445982,-400.0,0.00019178,2]
[360087727,1746545445991,-400.0,0.00019178,2]
[360087729,1746545446003,-685.46,0.00019178,2]
[360087731,1746545446012,-401.72877858,0.00019178,2]
[360087733,1746545446023,-561.88,0.00019178,2]
[360087735,1746545446032,-18840.89,0.00019178,2]
[360087737,1746545446043,-1347.25,0.00019178,2]
[360087739,1746545446052,-1051.64,0.00019178,2]
[360087741,1746545446063,-3470.31,0.00019178,2]
[360087743,1746545446072,-400.0,0.00019178,2]
[360087745,1746545446081,-403.1,0.00019178,2]
[360087747,1746545446090,-400.0,0.00019178,2]
[360087749,1746545446100,-2768.75,0.00019178,2]
[360087751,1746545446109,-503.74238831,0.00019178,2]
[360087753,1746545446118,-2553.13,0.00019178,2]
[360087755,1746545446127,-1618.24,0.00019178,2]
[360087759,1746545446137,-798.68,0.00019178,2]
[360087762,1746545446147,-400.0,0.00019178,2]
[360087766,1746545446156,-400.0,0.00019178,2]
[360087769,1746545446166,-582.72,0.00019178,2]
[360087772,1746545446175,-400.0,0.00019178,2]
[360087774,1746545446184,-408.25050653,0.00019178,2]
[360087776,1746545446193,-639.08,0.00019178,2]
[360087779,1746545446202,-401.14486658,0.00019178,2]
[360087781,1746545446212,-400.0,0.00019178,2]
[360087783,1746545446221,-1326.1,0.00019178,2]
[360087785,1746545446231,-857.93,0.00019178,2]
[360087787,1746545446240,-400.0,0.00019178,2]
[360087789,1746545446250,-400.0,0.00019178,2]
[360087791,1746545446259,-400.0,0.00019178,2]
[360087793,1746545446268,-400.0,0.00019178,2]
[360087795,1746545446277,-2659.17,0.00019178,2]
[360087797,1746545446287,-2880.62,0.00019178,2]
[360087799,1746545446296,-5208.12,0.00019178,2]
[360087801,1746545446307,-1445.96,0.00019178,2]
[360087803,1746545446315,-500.0,0.00019178,2]
[360087805,1746545446326,-400.0,0.00019178,2]
[360087807,1746545446336,-400.0,0.00019178,2]
[360087809,1746545446346,-405.36,0.00019178,2]
[360087811,1746545446355,-400.0,0.00019178,2]
[360087813,1746545446365,-400.0,0.00019178,2]
[360087815,1746545446374,-3035.31,0.00019178,2]
[360087817,1746545446384,-407.00011108,0.00019178,2]
[360087819,1746545446394,-1577.06,0.00019178,2]
[360087821,1746545446404,-400.0,0.00019178,2]
[360087823,1746545446414,-400.0,0.00019178,2]
[360087825,1746545446424,-1163.22,0.00019178,2]
[360087827,1746545446433,-403.10949804,0.00019178,2]
[360087829,1746545446443,-400.0,0.00019178,2]
[360087831,1746545446452,-400.0,0.00019178,2]
[360087833,1746545446462,-400.0,0.00019178,2]
[360087835,1746545446472,-407.83,0.00019178,2]
[360087837,1746545446482,-400.0,0.00019178,2]
[360087839,1746545446491,-400.0,0.00019178,2]
[360087841,1746545446501,-401.8993781,0.00019178,2]
[360087842,1746545446511,-1695.78,0.00019178,2]
[360087843,1746545446521,-2511.89,0.00019178,2]
[360087844,1746545446531,-405.80884421,0.00019178,2]
[360087845,1746545446540,-400.0,0.00019178,2]
[360087846,1746545446550,-625.03,0.00019178,2]
[360087847,1746545446562,-400.0,0.00019178,2]
[360087848,1746545446572,-1426.41,0.00019178,2]
[360087849,1746545446581,-451.19,0.00019178,2]
[360087850,1746545446591,-400.0,0.00019178,2]
[360087851,1746545446601,-518.26811235,0.00019178,2]
[360087852,1746545446610,-232.75881654,0.00019178,2]
[360087853,1746545446620,-657.42,0.00019178,2]
[360087854,1746545446631,-2054.02,0.00019178,2]
[360087856,1746545446639,-400.0,0.00019178,2]
[360087857,1746545446648,-2645.03,0.00019178,2]
[360087859,1746545446658,-400.0,0.00019178,2]
[360087861,1746545446667,-151.0,0.00019178,2]
[360087864,1746545446676,-598.031708,0.00019178,2]
[360087866,1746545446686,-500.0,0.00019178,2]
[360087868,1746545446696,-300.0,0.00019178,2]
[360087870,1746545446705,-200.0,0.00019194,4]
[360087872,1746545446715,-151.0,0.000192,2]
[360087874,1746545446725,-156.587,0.00019233,2]
[360087876,1746545446734,-162.380719,0.00019288,2]
[360087878,1746545446744,-151.0,0.000193,2]
[360087880,1746545446753,-79827.2961807,0.00019329,2]
[360087882,1746545446762,-168.3888056,0.00019343,2]
[360087884,1746545446771,-150.87121571,0.00019352,2]
[360087886,1746545446780,-174.61919141,0.00019398,2]
[360087887,1746545446789,-151.0,0.00019449,2]
[360087889,1746545446799,-179188.04363726,0.00019449,2]
[360087891,1746545446810,-151.0,0.00019449,2]
[360087894,1746545446820,-151.0,0.00019452,2]
[360087895,1746545446829,-456.41,0.00019452,2]
[360087898,1746545446838,-400.0,0.00019452,2]
[360087900,1746545446850,-400.0,0.00019452,2]